[Event "ISR-chT U14 2018"]
[Site "Nir HaEmek"]
[Date "2018.08.12"]
[Round "?"]
[White "Ben Ari, Yannay"]
[Black "Levi, Yaniv"]
[Result "1-0"]
[ECO "A03"]
[WhiteElo "2022"]
[BlackElo "1338"]
[Annotator "NA"]
[PlyCount "55"]
[EventDate "2018.08.12"]
[EventType "team-tourn"]
[EventCountry "ISR"]
[SourceTitle "playchess.com"]
[Source "ChessBase"]
[SourceQuality "1"]
[TimeControl "3060+10"]

1. b3 {[%emt 0:00:59]} d5 {[%emt 0:01:06]} 2. Bb2 {[%emt 0:00:15]} c5 {[%emt 0:00:35]} 3. e3 {[%emt 0:00:10]} Nc6 {[%emt 0:00:12]} 4. f4 {[%emt 0:00:08]} e6 {[%emt 0:00:10]} 5. Nf3 {[%emt 0:00:07]} Nf6 {[%emt 0:01:01]} 6. Bd3 {[%emt 0:03:25]} d4 {[%emt 0:00:45]} 7. O-O {[%emt 0:03:27]} Nd5 {[%emt 0:01:38]} 8. Qe2 {[%emt 0:04:39]} Bd7 {[%emt 0:00:44]} 9. Na3 {[%emt 0:01:09]} a6 {[%emt 0:00:32]} 10. Nc4 {[%emt 0:02:39]} b5 {[%emt 0:00:52]} 11. Nce5 {[%emt 0:00:05]} Bd6 {[%emt 0:01:54]} 12. exd4 {[%emt 0:12:54]} ({White should try} 12. Be4 $16) 12... Nxf4 {[%emt 0:02:59]} 13. Qe4 $14 {[%emt 0:00:30]} Nxd3 {[%emt 0:09:35]} 14. Nxc6 {[%emt 0:02:44]} Qc7 {[%emt 0:00:17]} 15. Nce5 {[%emt 0:00:18]} Bc6 {[%emt 0:05:14]} 16. Qxc6+ {[%emt 0:01:47]} Qxc6 {[%emt 0:00:22]} 17. Nxc6 {[%emt 0:00:02]} Rc8 {[%emt 0:01:46]} 18. cxd3 {[%emt 0:00:59]} Rxc6 {[%emt 0:00:18]} 19. dxc5 {[%emt 0:00:32]} Bxc5+ {[%emt 0:24:10]} 20. d4 {[%emt 0:00:11]} Bb4 {[%emt 0:00:00]} 21. d5 {[%emt 0:03:08]} exd5 {[%emt 0:00:00]} 22. Bxg7 {[%emt 0:01:16]} Rg8 {[%emt 0:00:00]} 23. Rae1+ {[%emt 0:00:09]} Kd7 {[%emt 0:00:00]} 24. Ne5+ {[%emt 0:00:26]} Kd6 {[%emt 0:00:00]} 25. Rf6+ {[%emt 0:00:20]} Kc5 {[%emt 0:00:00]} 26. Rxc6+ {[%emt 0:00:49]} Kd4 {[%emt 0:00:00]} 27. Nf3+ {[%emt 0:00:06]} Kd3 {[%emt 0:00:00]} 28. Re3# {[%emt 0:00:04]} 1-0

[Event "ISR-chT U14 2018"]
[Site "Nir HaEmek"]
[Date "2018.08.12"]
[Round "?"]
[White "Mizrahi, Ido"]
[Black "Rotenberg, Ariel"]
[Result "*"]
[ECO "C01"]
[WhiteElo "1943"]
[BlackElo "1123"]
[Annotator "NA"]
[PlyCount "22"]
[EventDate "2018.08.12"]
[EventType "team-tourn"]
[EventCountry "ISR"]
[SourceTitle "playchess.com"]
[Source "ChessBase"]
[SourceQuality "1"]
[TimeControl "3060+10"]

1. e4 {[%emt 0:00:52]} c6 {[%emt 0:00:56]} 2. d4 {[%emt 0:00:04] d5e5Qb6 [%clk 0:50:17] Nf3 [%clk 0:50:20] Bg4 [%clk 0:50:19] c3 [%clk 0:50:25]} e6 {[%emt 0:00:05]} 3. Be2 {[%emt 0:00:08] Bxf3Bxf3 [%clk 0:50:29]} c5 {[%emt 0:00:30]} 4. dxc5 {[%emt 0:03:36]} Bxc5 {[%emt 0:00:19] O-O [%clk 0:47:05] Nc6 [%clk 0:49:45] Qe2 [%clk 0:45:59] a5 [%clk 0:45:30]} 5. Bf4 {[%emt 0:05:11]} Ne7 {[%emt 0:05:07]} 6. a4 {[%emt 0:02:37]} O-O {[%emt 0:01:14]} 7. Na3 {[%emt 0:39:42]} Bxa3 {[%emt 0:03:25]} (7... d5 $17 8. Nf3 dxe4 9. Qxd8 Rxd8) 8. Rxa3 {[%emt 0:00:00]} Ng6 {[%emt 0:00:25]} 9. Bg3 {[%emt 0:00:00]} Qc7 $18 {[%emt 0:04:40]} (9... d5 $11) 10. h4 {[%emt 0:00:00]} h5 {[%emt 0:16:52]} 11. Rd3 {[%emt 0:00:00]} Rd8 {[%emt 0:00:00]} *

[Event "ISR-chT U14 2018"]
[Site "Nir HaEmek"]
[Date "2018.08.12"]
[Round "?"]
[White "Lisak, Rotem"]
[Black "Milikow, Yoav"]
[Result "*"]
[ECO "B28"]
[WhiteElo "1353"]
[BlackElo "2186"]
[Annotator "NA RC"]
[PlyCount "21"]
[EventDate "2018.08.12"]
[EventType "team-tourn"]
[EventCountry "ISR"]
[SourceTitle "playchess.com"]
[Source "ChessBase"]
[SourceQuality "1"]
[TimeControl "3060+10"]

{[%evp 11,15,0,22,20,124,-99]} 1. e4 {[%emt 0:00:54]} c5 {[%emt 0:00:58]} 2. Nf3 {[%emt 0:00:15]} a6 {[%emt 0:00:17] d4cxd4 [%clk 0:49:34]} 3. Nd4 {[%emt 0:01:09]} Nf6 {[%emt 0:00:34]} 4. Nc3 {[%emt 0:00:23]} e5 {[%emt 0:00:04]} 5. Nf3 {[%emt 0:00:33] Bb4 [%clk 0:49:50] Bg5 [%clk 0:46:00] Bxc3+ [%clk 0:44:25] bxc3 [%clk 0:45:50]} Qa5 {[%emt 0:08:15] Qd3 [%clk 0:41:34]} 6. Be2 {[%emt 0:48:46]} ({Lieber} 6. Nxe5 $16 d6 7. Nc4) 6... Nc6 {[%emt 0:06:33]} 7. O-O {[%emt 0:01:57]} d5 {[%emt 0:00:32]} (7... d6 $11 {hält das Gleichgewicht.}) 8. Rb1 $17 {[%emt 0:03:45]} (8. exd5 $16 {stays on course.} Nd4 9. Nxe5) 8... Qc7 {[%emt 0:35:07]} 9. Ng5 {[%emt 0:05:03]} Na5 {[%emt 0:08:46]} 10. Ne6 {[%emt 0:01:45]} fxe6 {[%emt 0:00:08]} 11. Bg4 {[%emt 0:02:08]} *

[Event "ISR-chT U14 2018"]
[Site "Nir HaEmek"]
[Date "2018.08.12"]
[Round "?"]
[White "Ben-Gera, Omer"]
[Black "Sokolovsky, Yahli"]
[Result "*"]
[ECO "C54"]
[WhiteElo "1313"]
[BlackElo "2062"]
[Annotator "NA"]
[PlyCount "44"]
[EventDate "2018.08.12"]
[EventType "team-tourn"]
[EventCountry "ISR"]
[SourceTitle "playchess.com"]
[Source "ChessBase"]
[SourceQuality "1"]
[TimeControl "3060+10"]

1. e4 {[%emt 0:00:53]} e5 {[%emt 0:01:12]} 2. Nf3 {[%emt 0:00:09]} Nc6 {[%emt 0:00:01]} 3. Bc4 {[%emt 0:00:15]} Bc5 {[%emt 0:00:11]} 4. c3 {[%emt 0:00:18]} Nf6 {[%emt 0:00:04]} 5. d4 {[%emt 0:00:21]} exd4 {[%emt 0:00:12]} 6. e5 {[%emt 0:01:46]} d5 {[%emt 0:03:33]} 7. Bb5 {[%emt 0:00:35]} Ne4 {[%emt 0:00:24]} 8. cxd4 {[%emt 0:00:31]} Bb4+ {[%emt 0:02:01]} 9. Bd2 {[%emt 0:00:32]} Nxd2 {[%emt 0:03:18]} 10. Nbxd2 {[%emt 0:00:18]} O-O {[%emt 0:03:18]} 11. Bxc6 {[%emt 0:01:27]} bxc6 {[%emt 0:02:47]} 12. O-O {[%emt 0:00:32]} Re8 {[%emt 0:04:59]} 13. a3 {[%emt 0:01:37]} Bf8 {[%emt 0:02:16]} 14. Nb3 {[%emt 0:00:56]} Rb8 $14 {[%emt 0:08:14]} 15. Qc2 {[%emt 0:02:48]} Bg4 {[%emt 0:02:06]} 16. Nfd2 {[%emt 0:40:42]} c5 {[%emt 0:01:39]} 17. Rfe1 {[%emt 0:39:28]} c4 {[%emt 0:04:09]} 18. Nc1 {[%emt 0:00:32]} c5 {[%emt 0:02:05]} 19. f3 {[%emt 0:01:09]} Bh5 {[%emt 0:01:05]} 20. Qc3 {[%emt 0:03:25]} Qb6 {[%emt 0:05:29]} 21. b3 {[%emt 0:02:04]} cxd4 {[%emt 0:00:15]} 22. Qc2 {[%emt 0:01:15]} d3+ {[%emt 0:00:10]} *

[Event "ISR-chT U14 2018"]
[Site "Nir HaEmek"]
[Date "2018.08.12"]
[Round "?"]
[White "Dezent, Eyal"]
[Black "Verny, David"]
[Result "*"]
[ECO "C84"]
[WhiteElo "1205"]
[BlackElo "1946"]
[Annotator "NA"]
[PlyCount "52"]
[EventDate "2018.08.12"]
[EventType "team-tourn"]
[EventCountry "ISR"]
[SourceTitle "playchess.com"]
[Source "ChessBase"]
[SourceQuality "1"]
[TimeControl "3060+10"]

1. e4 {[%emt 0:00:53]} e5 {[%emt 0:01:09]} 2. Nf3 {[%emt 0:00:15]} Nc6 {[%emt 0:00:13]} 3. Bb5 {[%emt 0:01:02]} a6 {[%emt 0:00:38]} 4. Ba4 {[%emt 0:00:12]} Nf6 {[%emt 0:00:43]} 5. d3 {[%emt 0:00:26]} b5 {[%emt 0:01:42]} 6. Bb3 {[%emt 0:00:09]} Be7 {[%emt 0:00:09]} 7. Nc3 {[%emt 0:00:47]} d6 {[%emt 0:00:20]} 8. h3 {[%emt 0:01:09]} Na5 {[%emt 0:01:09]} 9. Be3 {[%emt 0:05:21]} Nxb3 {[%emt 0:01:38]} 10. axb3 {[%emt 0:00:19]} Bb7 {[%emt 0:00:13]} 11. O-O {[%emt 0:00:38]} O-O {[%emt 0:00:44]} 12. Ne2 {[%emt 0:04:06]} Re8 {[%emt 0:01:45]} 13. Ng3 {[%emt 0:00:49]} Bf8 {[%emt 0:00:52]} 14. Bg5 {[%emt 0:00:26]} g6 {[%emt 0:00:57]} 15. Qd2 {[%emt 0:01:05]} Bg7 {[%emt 0:41:18]} 16. Bh6 {[%emt 0:01:07]} Bh8 {[%emt 0:01:24]} 17. Nf5 $17 {[%emt 0:06:44]} (17. Nh2 $11) 17... Bxe4 {[%emt 0:38:41]} 18. N5h4 {[%emt 0:03:52]} Bxf3 {[%emt 0:00:58]} 19. Nxf3 {[%emt 0:00:11]} Bg7 {[%emt 0:00:26]} 20. Bxg7 {[%emt 0:00:19]} Kxg7 {[%emt 0:00:12]} 21. Rfe1 {[%emt 0:01:03]} Nh5 {[%emt 0:00:46]} 22. Qc3 {[%emt 0:01:15]} f5 {[%emt 0:00:47]} 23. Nd2 {[%emt 0:05:05]} Nf4 {[%emt 0:01:03]} 24. Nf1 {[%emt 0:02:54]} Qg5 {[%emt 0:02:46]} 25. Ne3 {[%emt 0:01:36]} c5 {[%emt 0:02:00]} 26. Qd2 {[%emt 0:03:00]} Nxh3+ {[%emt 0:00:58]} *

[Event "ISR-chT U14 2018"]
[Site "Nir HaEmek"]
[Date "2018.08.12"]
[Round "?"]
[White "Glickman, Ido"]
[Black "Milikow, Elie"]
[Result "*"]
[ECO "B08"]
[WhiteElo "1195"]
[BlackElo "2173"]
[Annotator "NA RC"]
[PlyCount "20"]
[EventDate "2018.08.12"]
[EventType "team-tourn"]
[EventCountry "ISR"]
[SourceTitle "playchess.com"]
[Source "ChessBase"]
[SourceQuality "1"]
[TimeControl "3060+10"]

1. e4 {[%emt 0:00:52]} c5 {[%emt 0:00:55]} 2. Nf3 {[%emt 0:00:04]} g6 {[%emt 0:00:06]} 3. d4 {[%emt 0:00:44] cxd4Nxd4 [%clk 0:49:43]} Bg7 {[%emt 0:00:06] Nf3 [%clk 0:49:13] Nc6 [%clk 0:50:13]} 4. Nc3 {[%emt 0:00:53]} Nf6 {[%emt 0:00:46]} 5. Bc4 {[%emt 0:00:28]} O-O {[%emt 0:02:10]} 6. O-O {[%emt 0:00:23]} d6 {[%emt 0:00:07]} 7. h3 {[%emt 0:01:34]} Bd7 {[%emt 0:00:22]} 8. Bg5 {[%emt 0:01:20]} a6 {[%emt 0:01:00]} 9. Qd2 {[%emt 0:03:07]} b5 {[%emt 0:03:06]} 10. Bd3 {[%emt 0:00:19] Rc8 [%clk 0:42:47] a3 [%clk 0:39:58]} Qc7 {[%emt 0:12:56]} *

[Event "ISR-chT U14 2018"]
[Site "Nir HaEmek"]
[Date "2018.08.12"]
[Round "1"]
[White "Verny, David"]
[Black "Rotenberg, Ariel"]
[Result "1-0"]
[ECO "B12"]
[WhiteElo "1946"]
[BlackElo "1123"]
[Annotator "NA"]
[PlyCount "81"]
[EventDate "2018.08.12"]
[EventType "team-tourn"]
[EventCountry "ISR"]
[SourceTitle "playchess.com"]
[Source "ChessBase"]
[SourceQuality "1"]
[TimeControl "3060+10"]

1. e4 {[%emt 0:00:52]} c6 {[%emt 0:00:56]} 2. d4 {[%emt 0:00:04]} d5 3. e5 Qb6 {[%emt 0:00:17]} 4. Nf3 {[%emt 0:00:24]} Bg4 {[%emt 0:00:08]} 5. c3 {[%emt 0:00:05]} e6 {[%emt 0:00:10]} 6. Be2 {[%emt 0:00:09]} Bxf3 7. Bxf3 {[%emt 0:00:07]} c5 {[%emt 0:00:40]} 8. dxc5 {[%emt 0:03:39]} Bxc5 {[%emt 0:00:19]} 9. O-O {[%emt 0:00:05]} Nc6 $18 {[%emt 0:00:15]} 10. Qe2 {[%emt 0:01:16]} a5 {[%emt 0:04:25]} 11. Bf4 {[%emt 0:04:10]} Nge7 {[%emt 0:00:47]} 12. a4 {[%emt 0:02:37]} O-O {[%emt 0:01:14]} 13. Na3 {[%emt 0:39:42]} Bxa3 {[%emt 0:03:25]} 14. Rxa3 {[%emt 0:00:00]} Ng6 {[%emt 0:00:25]} 15. Bg3 {[%emt 0:00:00]} Qc7 {[%emt 0:04:40]} 16. Re1 {[%emt 0:00:00]} Rfd8 {[%emt 0:05:03]} 17. h4 {[%emt 0:00:00]} d4 {[%emt 0:02:43]} 18. Be4 {[%emt 0:00:00]} dxc3 {[%emt 0:01:44]} 19. Rxc3 {[%emt 0:00:00]} Qd7 {[%emt 0:00:18]} 20. h5 {[%emt 0:00:00]} Nge7 {[%emt 0:00:24]} 21. Rd3 {[%emt 0:00:00]} Qc7 {[%emt 0:00:15]} 22. Rc1 {[%emt 0:00:00]} Rxd3 {[%emt 0:01:44]} 23. Qxd3 {[%emt 0:00:00]} Rd8 {[%emt 0:00:21]} 24. Bxh7+ {[%emt 0:00:00]} Kh8 {[%emt 0:01:21]} 25. Qc2 {[%emt 0:00:00]} Qd7 {[%emt 0:00:59]} 26. Be4 {[%emt 0:00:00]} Nd4 {[%emt 0:02:16]} 27. Qd1 {[%emt 0:00:00]} b5 {[%emt 0:05:00]} 28. Kh1 {[%emt 0:00:00]} bxa4 {[%emt 0:02:22]} 29. Bh4 {[%emt 0:00:00]} Nb3 {[%emt 0:01:32]} 30. Qxd7 {[%emt 0:00:00]} Rxd7 {[%emt 0:00:01]} 31. Rc4 {[%emt 0:00:00]} Rd1+ {[%emt 0:02:33]} 32. Kh2 {[%emt 0:00:00]} Ng8 {[%emt 0:00:16]} 33. Bg5 {[%emt 0:00:00]} Rf1 {[%emt 0:01:15]} 34. Be3 {[%emt 0:00:00]} Ra1 {[%emt 0:00:15]} 35. Bc6 {[%emt 0:00:23]} a3 {[%emt 0:00:17]} 36. bxa3 {[%emt 0:00:11]} Rxa3 {[%emt 0:00:10]} 37. Be8 {[%emt 0:00:00]} Kh7 {[%emt 0:00:56]} 38. Bxf7 {[%emt 0:00:02]} Ra2 {[%emt 0:00:27]} 39. Rc8 {[%emt 0:00:05]} Ne7 {[%emt 0:00:42]} 40. Re8 {[%emt 0:00:05]} Nf5 {[%emt 0:00:53]} 41. Bg6# {[%emt 0:00:02]} 1-0

[Event "ISR-chT U14 2018"]
[Site "Nir HaEmek"]
[Date "2018.08.12"]
[Round "1"]
[White "Lisak, Rotem"]
[Black "Kochavi, Ori"]
[Result "0-1"]
[ECO "B28"]
[WhiteElo "1353"]
[BlackElo "2138"]
[Annotator "NA"]
[PlyCount "110"]
[EventDate "2018.08.12"]
[EventType "team-tourn"]
[EventCountry "ISR"]
[SourceTitle "playchess.com"]
[Source "ChessBase"]
[SourceQuality "1"]
[TimeControl "3060+10"]

1. e4 {[%emt 0:00:54]} c5 {[%emt 0:00:58]} 2. Nf3 {[%emt 0:00:15]} a6 {[%emt 0:00:17]} 3. d4 cxd4 {[%emt 0:00:41]} 4. Nxd4 {[%emt 0:01:19]} Nf6 {[%emt 0:00:03]} 5. Nc3 {[%emt 0:00:23]} e5 {[%emt 0:00:04]} 6. Nf3 {[%emt 0:00:33]} Bb4 {[%emt 0:00:07]} 7. Bg5 {[%emt 0:02:46]} Bxc3+ {[%emt 0:05:35]} 8. bxc3 $17 {[%emt 0:00:20]} Qa5 {[%emt 0:02:53]} 9. Qd3 {[%emt 0:04:26]} Nxe4 {[%emt 0:03:13]} 10. Bd2 {[%emt 0:03:11]} Nxd2 {[%emt 0:00:32]} 11. Qxd2 {[%emt 0:01:05]} O-O {[%emt 0:01:43]} 12. Be2 {[%emt 0:02:56]} Nc6 {[%emt 0:01:35]} 13. O-O {[%emt 0:01:57]} d5 {[%emt 0:00:32]} 14. Rfd1 {[%emt 0:02:02]} Be6 {[%emt 0:00:48]} 15. Rab1 {[%emt 0:01:53]} Qc7 {[%emt 0:03:41]} 16. Qe3 {[%emt 0:01:56]} Rac8 {[%emt 0:06:36]} 17. Ng5 {[%emt 0:03:17]} Na5 {[%emt 0:02:20]} 18. Nxe6 {[%emt 0:01:45]} fxe6 {[%emt 0:00:08]} 19. Bg4 {[%emt 0:02:08]} Rf6 {[%emt 0:01:10]} 20. Qh3 {[%emt 0:02:11]} Re8 {[%emt 0:00:36]} 21. Qe3 {[%emt 0:02:36]} b5 {[%emt 0:02:31]} 22. Be2 {[%emt 0:03:06]} Rf4 {[%emt 0:01:35]} 23. Bd3 {[%emt 0:01:33]} Nc4 {[%emt 0:02:13]} 24. Qh3 {[%emt 0:02:40]} e4 {[%emt 0:00:10]} 25. Bxc4 {[%emt 0:00:42]} Qxc4 {[%emt 0:00:05]} 26. Qe3 {[%emt 0:01:32]} Ref8 {[%emt 0:05:33]} 27. Qb6 {[%emt 0:03:22]} Qc8 {[%emt 0:01:22]} 28. Rf1 {[%emt 0:00:59]} R4f6 {[%emt 0:00:44]} 29. Rb3 {[%emt 0:01:07]} Kh8 {[%emt 0:01:22]} 30. Qd4 {[%emt 0:00:22]} Qc7 {[%emt 0:03:31]} 31. h3 {[%emt 0:00:38]} Rd8 {[%emt 0:00:22]} 32. Rd1 {[%emt 0:00:45]} h6 {[%emt 0:00:18]} 33. Qe3 {[%emt 0:00:16]} Rdf8 {[%emt 0:00:40]} 34. Rf1 {[%emt 0:00:09]} e5 {[%emt 0:01:23]} 35. Qd2 {[%emt 0:00:04]} Qc4 {[%emt 0:00:11]} 36. Qe3 {[%emt 0:00:13]} Rf4 {[%emt 0:00:30]} 37. Re1 {[%emt 0:00:39]} d4 {[%emt 0:00:26]} 38. cxd4 {[%emt 0:00:12]} exd4 {[%emt 0:00:02]} 39. Qd2 {[%emt 0:00:11]} Rxf2 {[%emt 0:00:22]} 40. Qxf2 {[%emt 0:00:16]} Rxf2 {[%emt 0:00:01]} 41. Kxf2 {[%emt 0:00:05]} Qxc2+ {[%emt 0:00:22]} 42. Re2 {[%emt 0:00:08]} e3+ {[%emt 0:00:01]} 43. Kf3 {[%emt 0:00:26]} Qf5+ {[%emt 0:00:24]} 44. Kg3 {[%emt 0:00:04]} Qe5+ {[%emt 0:00:01]} 45. Kf3 {[%emt 0:00:07]} Qh5+ {[%emt 0:00:05]} 46. g4 {[%emt 0:00:03]} Qxh3+ {[%emt 0:00:03]} 47. Kf4 {[%emt 0:00:07]} Qf1+ {[%emt 0:00:02]} 48. Ke4 {[%emt 0:00:04]} Qxe2 {[%emt 0:00:05]} 49. Kxd4 {[%emt 0:00:04]} Qxg4+ {[%emt 0:00:05]} 50. Kxe3 {[%emt 0:00:03]} Qg3+ {[%emt 0:00:01]} 51. Kd4 {[%emt 0:00:04]} Qf2+ {[%emt 0:00:05]} 52. Ke4 {[%emt 0:00:04]} Qxa2 {[%emt 0:00:04]} 53. Rf3 {[%emt 0:00:05]} Qg2 {[%emt 0:00:08]} 54. Ke3 {[%emt 0:00:03]} Qxf3+ {[%emt 0:00:02]} 55. Kxf3 {[%emt 0:00:04]} a5 {[%emt 0:00:01]} 0-1

[Event "ISR-chT U14 2018"]
[Site "Nir HaEmek"]
[Date "2018.08.12"]
[Round "1"]
[White "Dezent, Eyal"]
[Black "Vagman, Roy"]
[Result "0-1"]
[ECO "C84"]
[WhiteElo "1205"]
[BlackElo "1952"]
[Annotator "NA"]
[PlyCount "74"]
[EventDate "2018.08.12"]
[EventType "team-tourn"]
[EventCountry "ISR"]
[SourceTitle "playchess.com"]
[Source "ChessBase"]
[SourceQuality "1"]
[TimeControl "3060+10"]

1. e4 {[%emt 0:00:53]} e5 {[%emt 0:01:09]} 2. Nf3 {[%emt 0:00:15]} Nc6 {[%emt 0:00:13]} 3. Bb5 {[%emt 0:01:02]} a6 {[%emt 0:00:38]} 4. Ba4 {[%emt 0:00:12]} Nf6 {[%emt 0:00:43]} 5. d3 {[%emt 0:00:26]} b5 {[%emt 0:01:42]} 6. Bb3 {[%emt 0:00:09]} Be7 {[%emt 0:00:09]} 7. Nc3 {[%emt 0:00:47]} d6 {[%emt 0:00:20]} 8. h3 {[%emt 0:01:09]} Na5 {[%emt 0:01:09]} 9. Be3 {[%emt 0:05:21]} Nxb3 {[%emt 0:01:38]} 10. axb3 {[%emt 0:00:19]} Bb7 {[%emt 0:00:13]} 11. O-O {[%emt 0:00:38]} O-O {[%emt 0:00:44]} 12. Ne2 {[%emt 0:04:06]} Re8 {[%emt 0:01:45]} 13. Ng3 {[%emt 0:00:49]} Bf8 {[%emt 0:00:52]} 14. Bg5 {[%emt 0:00:26]} g6 {[%emt 0:00:57]} 15. Qd2 {[%emt 0:01:05]} Bg7 {[%emt 0:01:33]} 16. Bh6 {[%emt 0:01:07]} Bh8 {[%emt 0:01:24]} 17. Nf5 $17 {[%emt 0:06:44]} (17. Nh2 $11) 17... Bxe4 {[%emt 0:07:32]} 18. N5h4 {[%emt 0:03:52]} Bxf3 {[%emt 0:00:58]} 19. Nxf3 {[%emt 0:00:11]} Bg7 {[%emt 0:00:26]} 20. Bxg7 {[%emt 0:00:19]} Kxg7 {[%emt 0:00:12]} 21. Rfe1 {[%emt 0:01:03]} Nh5 {[%emt 0:00:46]} 22. Qc3 {[%emt 0:01:15]} f5 {[%emt 0:00:47]} 23. Nd2 {[%emt 0:05:05]} Nf4 {[%emt 0:01:03]} 24. Nf1 {[%emt 0:02:54]} Qg5 {[%emt 0:02:46]} 25. Ne3 {[%emt 0:01:36]} c5 {[%emt 0:02:00]} 26. Qd2 {[%emt 0:03:00]} Nxh3+ {[%emt 0:00:58]} 27. Kh2 {[%emt 0:01:02]} Nf4 {[%emt 0:02:30]} 28. Kg1 {[%emt 0:00:34]} d5 {[%emt 0:00:30]} 29. f3 {[%emt 0:00:25]} d4 {[%emt 0:00:26]} 30. Nd5 {[%emt 0:01:01]} Nh3+ {[%emt 0:00:05]} 31. Kf1 {[%emt 0:00:32]} Qxd2 {[%emt 0:00:05]} 32. Re2 {[%emt 0:01:00]} Qg5 {[%emt 0:00:07]} 33. gxh3 {[%emt 0:01:00]} Rad8 {[%emt 0:00:19]} 34. Rg2 {[%emt 0:01:16]} Qh4 {[%emt 0:00:16]} 35. Rxa6 {[%emt 0:00:47]} Rxd5 {[%emt 0:00:10]} 36. Ra7+ {[%emt 0:00:14]} Re7 {[%emt 0:00:09]} 37. Rxe7+ {[%emt 0:00:35]} Qxe7 {[%emt 0:00:10]} 0-1

[Event "ISR-chT U14 2018"]
[Site "Nir HaEmek"]
[Date "2018.08.12"]
[Round "1"]
[White "Glickman, Ido"]
[Black "Sobel, Ido"]
[Result "0-1"]
[ECO "B70"]
[WhiteElo "1195"]
[BlackElo "1727"]
[Annotator "NA"]
[PlyCount "62"]
[EventDate "2018.08.12"]
[EventType "team-tourn"]
[EventCountry "ISR"]
[SourceTitle "playchess.com"]
[Source "ChessBase"]
[SourceQuality "1"]
[TimeControl "3060+10"]

1. e4 {[%emt 0:00:52]} c5 {[%emt 0:00:55]} 2. Nf3 {[%emt 0:00:04]} g6 {[%emt 0:00:06]} 3. d4 {[%emt 0:00:44]} cxd4 4. Nxd4 {[%emt 0:00:17]} Bg7 {[%emt 0:00:16]} 5. Nf3 {[%emt 0:00:40]} Nc6 {[%emt 0:00:20]} 6. Nc3 {[%emt 0:00:16]} Nf6 {[%emt 0:00:36]} 7. Bc4 {[%emt 0:00:28]} O-O {[%emt 0:02:10]} 8. O-O {[%emt 0:00:23]} d6 {[%emt 0:00:07]} 9. h3 {[%emt 0:01:34]} Bd7 {[%emt 0:00:22]} 10. Bg5 {[%emt 0:01:20]} a6 {[%emt 0:01:00]} 11. Qd2 {[%emt 0:03:07]} b5 {[%emt 0:03:06]} 12. Bd3 {[%emt 0:00:19]} Rc8 {[%emt 0:01:15]} 13. a3 {[%emt 0:03:08]} Na5 {[%emt 0:01:28]} 14. Rab1 {[%emt 0:03:08]} Nc4 {[%emt 0:00:30]} 15. Qe2 {[%emt 0:01:36]} Nxb2 {[%emt 0:01:20]} 16. Rxb2 {[%emt 0:00:22]} Rxc3 {[%emt 0:00:04]} 17. Rb3 {[%emt 0:02:09]} Qc7 {[%emt 0:09:09]} 18. Qd2 {[%emt 0:09:45]} Rc8 {[%emt 0:00:41]} 19. Rc1 {[%emt 0:05:08]} Be6 {[%emt 0:04:05]} 20. Rxc3 {[%emt 0:03:16]} Qxc3 {[%emt 0:00:12]} 21. Qxc3 {[%emt 0:00:16]} Rxc3 {[%emt 0:00:08]} 22. Ra1 {[%emt 0:03:49]} Nd7 {[%emt 0:03:47]} 23. Rd1 {[%emt 0:00:47]} Kf8 {[%emt 0:00:45]} 24. Bc1 {[%emt 0:01:13]} Ne5 {[%emt 0:00:59]} 25. Nxe5 {[%emt 0:01:04]} Bxe5 {[%emt 0:02:14]} 26. Kf1 {[%emt 0:01:23]} Bc4 {[%emt 0:01:20]} 27. Ke1 {[%emt 0:01:47]} Bxd3 {[%emt 0:00:49]} 28. cxd3 {[%emt 0:00:03]} Rc2 {[%emt 0:02:19]} 29. f4 {[%emt 0:02:47]} Bd4 {[%emt 0:00:33]} 30. g4 {[%emt 0:01:01]} Rh2 {[%emt 0:00:10]} 31. Rd2 {[%emt 0:00:13]} Rh1+ {[%emt 0:00:15]} 0-1

[Event "ISR-chT U14 2018"]
[Site "Nir HaEmek"]
[Date "2018.08.13"]
[Round "3"]
[White "Ben Ari, Yannay"]
[Black "Levin, Guy"]
[Result "1/2-1/2"]
[ECO "B24"]
[WhiteElo "2022"]
[BlackElo "2032"]
[Annotator "NA RC"]
[PlyCount "36"]
[EventDate "2018.08.12"]
[EventType "team-tourn"]
[EventCountry "ISR"]
[SourceTitle "playchess.com"]
[Source "ChessBase"]
[SourceQuality "1"]
[TimeControl "3060+10"]

1. e4 {[%emt 0:00:54]} c5 {[%emt 0:01:01]} 2. Nc3 {[%emt 0:00:06]} Nc6 {[%emt 0:00:09]} 3. g3 {[%emt 0:00:07]} g6 {[%emt 0:01:28]} 4. Bg2 {[%emt 0:00:07]} Bg7 {[%emt 0:00:07]} 5. f4 {[%emt 0:01:09]} e6 {[%emt 0:00:29]} 6. Nge2 {[%emt 0:02:20]} d6 {[%emt 0:00:17]} 7. O-O {[%emt 0:00:16]} Nge7 {[%emt 0:00:07]} 8. a3 {[%emt 0:04:54]} O-O {[%emt 0:01:10]} 9. Rb1 {[%emt 0:00:24]} Rb8 {[%emt 0:05:24]} 10. d3 {[%emt 0:01:53]} b6 {[%emt 0:03:05]} 11. Be3 {[%emt 0:02:53]} Nd4 {[%emt 0:01:21]} 12. Qd2 {[%emt 0:06:31]} f5 {[%emt 0:07:38]} 13. Bxd4 {[%emt 0:04:59]} cxd4 {[%emt 0:00:24]} 14. Nb5 {[%emt 0:00:14]} e5 {[%emt 0:00:34]} 15. Qb4 {[%emt 0:03:45]} fxe4 {[%emt 0:01:46]} 16. fxe5 {[%emt 0:08:28]} dxe5 {[%emt 0:01:34]} 17. Rxf8+ {[%emt 0:00:58]} Bxf8 {[%emt 0:02:01]} 18. Qc4+ $19 {[%emt 0:06:44]} Kg7 {[%emt 0:09:05]} 1/2-1/2